bitfinex/quotes_SOLUSD_20251106
["timestamp","ask_amount","ask_price","bid_price","bid_amount"]
[1762404423334,6.14794468,162.8,162.74,29.32153192]
[1762404424615,12.29049369,162.8,162.74,29.32153192]
[1762404424818,5.44794468,162.78,162.73,9.78882769]
[1762404425039,12.70794468,162.8,162.75,6.14439324]
[1762404425246,13.40794468,162.8,162.75,0.68]
[1762404425429,13.40794468,162.8,162.75,5.44794468]
[1762404425632,13.40794468,162.8,162.75,6.12794468]
[1762404426529,13.40794468,162.8,162.76,0.68]
[1762404426934,13.40794468,162.8,162.76,6.82399366]
[1762404427137,14.10251477,162.8,162.76,0.68]
[1762404427439,19.55045945,162.8,162.76,0.68]
[1762404427838,19.55045945,162.8,162.72,22.62366485]
[1762404427839,5.44794468,162.78,162.72,6.12794468]
[1762404428142,5.44794468,162.78,162.72,13.38794468]
[1762404428341,6.14794468,162.78,162.72,13.38794468]
[1762404428843,12.29121999,162.78,162.72,19.53335913]
[1762404429739,5.44794468,162.82,162.76,15.23677237]
[1762404429944,78.62945085,162.83,162.77,5.44794468]
[1762404430243,78.62945085,162.83,162.77,6.12794468]
[1762404430949,78.62945085,162.83,162.76,15.23677237]
[1762404430950,6.14794468,162.82,162.76,15.23677237]
[1762404431132,5.44794468,162.81,162.76,9.78882769]
[1762404431317,5.44794468,162.8,162.76,9.78882769]
[1762404431618,6.14794468,162.8,162.75,5.44794468]
[1762404431817,93.97638496,162.83,162.73,10.46882769]
[1762404431818,5.44794468,162.78,162.73,10.46882769]
[1762404432021,5.44794468,162.8,162.74,22.47677237]
[1762404432238,85.16945085,162.82,162.77,20.592]
[1762404432459,79.72150617,162.82,162.77,26.03994468]
[1762404432636,79.72150617,162.82,162.78,0.68]
[1762404433042,85.86945085,162.82,162.78,0.68]
[1762404433517,91.31125936,162.82,162.77,13.38356904]
[1762404433722,5.44794468,162.8,162.77,7.24]
[1762404433948,5.44794468,162.81,162.77,0.68]
[1762404434141,85.16945085,162.82,162.76,15.23677237]
[1762404434445,85.16945085,162.82,162.77,0.68]
[1762404434645,85.86945085,162.82,162.77,0.68]
[1762404434950,79.72150617,162.82,162.78,6.14326084]
[1762404435123,79.72150617,162.82,162.78,11.59120552]
[1762404435323,72.48150617,162.82,162.79,0.68]
[1762404435632,5.44794468,162.83,162.78,11.59120552]
[1762404435819,6.14794468,162.84,162.79,5.44794468]
[1762404436021,0.7,162.84,162.79,6.12794468]
[1762404436248,0.7,162.83,162.79,6.12794468]
[1762404437018,0.7,162.87,162.82,5.44794468]
[1762404437222,0.7,162.87,162.8,39.20759918]
[1762404437223,0.7,162.87,162.83,5.44794468]
[1762404437659,0.7,162.87,162.83,6.12794468]
[1762404437838,0.7,162.87,162.83,0.68]
[1762404438062,18.80775083,162.88,162.84,0.68]
[1762404438243,104.66059372,162.89,162.84,0.68]
[1762404438554,0.7,162.88,162.84,5.44794468]
[1762404438754,0.7,162.88,162.83,7.22]
[1762404438755,6.14794468,162.88,162.83,12.66794468]
[1762404438923,6.14794468,162.88,162.83,13.34794468]
[1762404439328,20.592,162.89,162.84,16.60982498]
[1762404439563,0.7,162.95,162.89,9.78882769]
[1762404439734,0.7,162.95,162.92,5.44794468]
[1762404440054,32.87618909,162.97,162.92,5.44794468]
[1762404440230,0.7,162.97,162.93,5.44794468]
[1762404440553,0.7,162.97,162.92,5.44794468]
[1762404441034,6.83611565,162.97,162.92,5.44794468]
[1762404441353,0.7,162.96,162.92,5.44794468]
[1762404442252,5.44794468,162.94,162.88,6.15794468]
[1762404442452,5.44794468,162.94,162.89,5.44794468]
[1762404442643,5.44794468,162.95,162.9,5.44794468]
[1762404443156,6.14794468,162.95,162.9,6.15794468]
[1762404443651,11.58441999,162.96,162.91,0.71]
[1762404443843,6.14794468,162.95,162.89,5.44794468]
[1762404444043,5.44794468,162.94,162.89,5.44794468]
[1762404444255,6.14794468,162.94,162.88,19.51716029]
[1762404445057,0.7,162.94,162.88,19.51716029]
[1762404445240,5.44794468,162.93,162.88,19.51716029]
[1762404445447,6.14794468,162.94,162.88,19.51716029]
[1762404445648,7.22,162.97,162.89,9.78882769]
[1762404445847,7.22,162.97,162.86,20.592]
[1762404445848,5.44794468,162.92,162.86,0.29578733]
[1762404446048,5.44794468,162.92,162.77,9.94866729]
[1762404446049,26.03994468,162.87,162.79,0.71]
[1762404446345,5.44794468,162.85,162.79,6.15794468]
[1762404446547,5.44794468,162.85,162.8,9.78882769]
[1762404446747,5.44794468,162.85,162.8,10.49882769]
[1762404447060,27.852,162.87,162.82,5.44794468]
[1762404447360,27.852,162.87,162.82,9.78882769]
[1762404447361,20.592,162.87,162.82,9.78882769]
[1762404447554,26.03994468,162.87,162.83,0.71]
[1762404447962,32.17990155,162.87,162.83,0.71]
[1762404448163,5.44794468,162.85,162.8,14.11248744]
[1762404448359,5.44794468,162.84,162.8,10.49882769]
[1762404449462,5.44794468,162.84,162.8,16.64122417]
[1762404449659,5.44794468,162.84,162.81,0.71]
[1762404450881,5.44794468,162.84,162.8,9.78882769]
[1762404451043,5.44794468,162.84,162.8,10.49882769]
[1762404451549,5.44794468,162.84,162.79,7.26]
[1762404451550,5.44794468,162.83,162.79,7.26]
[1762404451856,6.14794468,162.83,162.79,7.26]
[1762404452041,6.14794468,162.83,162.79,7.97]
[1762404452242,5.44794468,162.83,162.79,7.97]
[1762404452458,11.58940141,162.83,162.79,7.97]
[1762404452663,6.14794468,162.82,162.79,7.26]
[1762404452862,6.14794468,162.82,162.76,0.71]
[1762404452863,5.44794468,162.82,162.76,9.78882769]
[1762404453149,5.44794468,162.82,162.77,0.71]
[1762404453348,93.07350617,162.85,162.77,0.71]
[1762404453548,5.44794468,162.84,162.79,9.78882769]
[1762404453754,5.44794468,162.84,162.79,17.04882769]
[1762404453958,5.44794468,162.84,162.8,0.71]
[1762404454246,6.14794468,162.84,162.8,0.71]
[1762404455068,12.28897309,162.84,162.8,0.71]
[1762404456256,5.44794468,162.83,162.8,0.71]
[1762404456563,6.84102841,162.84,162.8,0.71]
[1762404456564,12.28897309,162.84,162.8,0.71]
[1762404457684,5.44794468,162.84,162.8,0.71]
[1762404457847,5.44794468,162.84,162.8,6.85247813]
[1762404458045,6.14794468,162.84,162.8,6.85247813]
[1762404458571,5.44794468,162.88,162.83,6.14137443]
[1762404458744,79.3206574,162.89,162.83,6.14137443]
[1762404458944,5.44794468,162.88,162.83,6.82137443]
[1762404459160,6.14794468,162.88,162.83,6.82137443]
[1762404459366,6.14794468,162.88,162.84,0.68]
[1762404459772,6.14794468,162.88,162.83,6.14137443]
[1762404460074,6.14794468,162.88,162.83,6.82137443]
[1762404460781,12.28745443,162.88,162.83,0.68]
[1762404461541,11.58745443,162.88,162.83,0.68]
[1762404461777,5.44794468,162.88,162.83,6.82115427]
[1762404461953,79.32070976,162.89,162.83,6.82115427]
[1762404462153,5.44794468,162.88,162.83,6.82115427]
[1762404462388,5.44794468,162.88,162.83,0.68]
[1762404462549,78.62070976,162.89,162.84,0.68]
[1762404462748,5.44794468,162.87,162.82,29.31848773]
[1762404462956,5.44794468,162.87,162.82,29.29848773]
[1762404463171,5.44794468,162.87,162.83,0.68]
[1762404463549,5.44794468,162.87,162.83,6.82125448]
[1762404463875,0.7,162.88,162.83,6.82125448]
[1762404464045,5.44794468,162.87,162.83,6.14125448]
[1762404464250,5.44794468,162.87,162.83,6.82125448]
[1762404464554,0.7,162.86,162.82,17.02882769]
[1762404464757,6.14794468,162.86,162.82,17.02882769]
[1762404465058,6.14794468,162.86,162.82,17.70882769]
[1762404465475,5.44794468,162.86,162.82,23.85054758]
[1762404466378,2.08858709,162.86,162.82,23.85054758]
[1762404467080,2.78858709,162.86,162.82,23.85054758]
[1762404468065,2.78858709,162.86,162.79,20.592]
[1762404468066,2.78858709,162.85,162.79,20.592]
[1762404468373,3.26461376,162.83,162.78,9.78882769]
[1762404468762,3.96461376,162.83,162.78,16.61193047]
[1762404469074,3.26461376,162.85,162.79,0.68]
[1762404469251,9.4051715,162.86,162.8,10.50461376]
[1762404469450,9.4051715,162.86,162.8,3.26461376]
[1762404469646,9.4051715,162.86,162.8,11.18461376]
[1762404469850,17.34453996,162.87,162.81,3.94461376]
[1762404470379,17.34453996,162.87,162.82,0.68]
[1762404470679,14.0799262,162.87,162.82,0.68]
[1762404470847,3.96461376,162.87,162.82,6.82146234]
[1762404471050,3.96461376,162.87,162.82,14.06146234]
[1762404471276,3.96461376,162.87,162.83,0.68]
[1762404471654,9.40453553,162.87,162.82,7.24]
[1762404471984,3.96461376,162.86,162.82,7.92]
[1762404472155,3.96461376,162.86,162.82,14.06172143]
[1762404472355,9.40453553,162.87,162.83,0.66]
[1762404472679,10.11453553,162.87,162.82,7.9]
[1762404473367,6.84992177,162.87,162.82,7.9]
[1762404473672,3.26461376,162.85,162.8,17.02882769]
[1762404474067,3.26461376,162.85,162.8,17.68882769]
[1762404474277,0.71,162.84,162.8,17.68882769]
[1762404474576,0.71,162.84,162.8,10.44882769]
[1762404474757,0.71,162.84,162.8,0.66]
[1762404475081,3.97461376,162.84,162.8,0.66]
[1762404475379,3.97461376,162.84,162.79,13.36288346]
[1762404475594,3.97461376,162.84,162.79,14.02288346]
[1762404476283,0.71,162.84,162.79,14.02288346]
[1762404476470,73.19150617,162.86,162.8,0.66]
[1762404476788,72.48150617,162.86,162.81,9.78882769]
[1762404476977,75.74611993,162.86,162.81,9.78882769]
[1762404477281,75.74611993,162.86,162.82,0.66]
[1762404477467,76.45611993,162.86,162.82,0.66]
[1762404478184,76.45611993,162.86,162.82,6.80172815]
[1762404478683,72.48150617,162.86,162.82,6.14172815]
[1762404478869,7.22,162.89,162.83,0.66]
[1762404479070,3.26461376,162.88,162.83,0.66]
[1762404479478,3.97461376,162.88,162.83,0.66]
[1762404480284,10.48461376,162.89,162.84,6.14099729]
[1762404480469,7.22,162.89,162.85,9.78882769]
[1762404480664,7.22,162.89,162.85,10.44882769]
[1762404480983,79.32986613,162.91,162.85,10.44882769]
[1762404480984,79.32986613,162.91,162.85,17.00882769]
[1762404481289,3.26461376,162.9,162.86,0.66]
[1762404481485,3.97461376,162.9,162.86,0.66]
[1762404482788,3.97461376,162.9,162.85,17.00882769]
[1762404482789,10.11339893,162.9,162.85,17.00882769]
[1762404483104,3.26461376,162.89,162.86,0.66]
[1762404483273,3.26461376,162.87,162.83,6.14131133]
[1762404483469,87.8277277,162.91,162.83,6.14131133]
[1762404483470,72.48150617,162.91,162.86,3.26461376]
[1762404483695,72.48150617,162.91,162.87,3.26461376]
[1762404483988,72.48150617,162.91,162.87,3.92461376]
[1762404484188,72.48150617,162.91,162.87,0.66]
[1762404484882,72.48150617,162.91,162.88,6.13948919]
[1762404485078,3.26461376,162.92,162.88,6.13948919]
[1762404485289,0.71,162.94,162.89,0.66]
[1762404485469,3.97461376,162.93,162.89,9.78882769]
[1762404485663,3.97461376,162.93,162.88,6.79948919]
[1762404485991,3.26461376,162.91,162.86,17.66882769]
[1762404486163,3.26461376,162.91,162.86,23.80888255]
[1762404486364,3.26461376,162.88,162.83,0.66]
[1762404486576,3.26461376,162.88,162.83,10.44882769]
[1762404486783,0.71,162.87,162.83,10.44882769]
[1762404487073,3.97461376,162.87,162.82,13.36175162]
[1762404487471,0.71,162.86,162.82,13.36175162]
[1762404487677,3.26461376,162.86,162.82,13.36175162]
[1762404487872,0.71,162.87,162.83,0.66]
[1762404488078,3.97461376,162.87,162.83,0.66]
[1762404488480,7.22,162.88,162.83,0.66]
[1762404488790,11.19461376,162.88,162.83,0.66]
[1762404488999,3.97461376,162.87,162.83,6.80135909]
[1762404489196,3.26461376,162.85,162.8,9.78882769]
[1762404489386,3.26461376,162.84,162.8,17.00882769]
[1762404489691,3.26461376,162.82,162.8,7.22]
[1762404490095,3.97461376,162.83,162.8,7.22]
[1762404490478,7.22,162.85,162.8,7.22]
[1762404490479,10.48461376,162.85,162.81,0.66]
[1762404490685,11.19461376,162.85,162.81,0.66]
[1762404490873,3.26461376,162.84,162.8,7.22]
[1762404491192,10.11574309,162.84,162.8,7.22]
[1762404491503,10.11574309,162.84,162.8,7.88]
[1762404492201,0.71,162.84,162.8,14.02238509]
[1762404492373,7.22,162.85,162.81,0.66]
[1762404492573,3.97461376,162.87,162.81,13.71344145]
[1762404492992,3.97461376,162.87,162.83,6.14137443]
[1762404493201,3.26461376,162.86,162.82,0.66]
[1762404493495,3.26461376,162.85,162.82,0.66]
[1762404493681,3.26461376,162.85,162.82,9.78882769]
[1762404493886,3.97461376,162.86,162.82,10.44882769]
[1762404494299,26.73154931,162.88,162.82,10.44882769]
[1762404494503,3.26461376,162.86,162.82,10.44882769]
[1762404494697,20.592,162.88,162.83,0.66]
[1762404494896,3.26461376,162.87,162.83,0.66]
[1762404495196,24.56661376,162.88,162.83,6.80116217]
[1762404497006,30.70617169,162.88,162.83,6.80116217]
[1762404497303,24.56661376,162.88,162.83,6.80116217]
[1762404497490,20.592,162.88,162.84,0.66]
[1762404497890,21.302,162.88,162.84,0.66]
[1762404498116,0.71,162.88,162.84,0.66]
[1762404498601,72.48150617,162.89,162.84,3.92461376]
[1762404498914,0.71,162.87,162.83,16.60577593]
[1762404499211,3.26461376,162.88,162.83,17.26577593]
[1762404499509,3.26461376,162.87,162.83,7.86]
[1762404499704,3.26461376,162.87,162.83,7.2]
[1762404500008,3.97461376,162.87,162.83,7.2]
[1762404500600,3.26461376,162.88,162.84,0.66]
[1762404500802,3.97461376,162.88,162.83,13.34129517]
[1762404501003,3.97461376,162.88,162.83,14.00129517]
[1762404501407,0.71,162.87,162.83,7.86]
[1762404501611,3.97461376,162.87,162.83,7.2]
[1762404501910,3.26461376,162.84,162.8,3.20992943]
[1762404502300,3.26461376,162.84,162.8,3.88992943]
[1762404502501,3.94461376,162.84,162.8,3.88992943]
[1762404503018,3.26461376,162.82,162.8,3.20992943]
[1762404503522,3.94461376,162.81,162.8,3.20992943]
[1762404503722,3.94461376,162.81,162.76,23.83255511]
[1762404503919,3.94461376,162.81,162.78,3.21110182]
[1762404504094,0.68,162.8,162.78,3.21110182]
[1762404505211,3.26461376,162.8,162.78,3.21110182]
[1762404505814,9.40719663,162.8,162.78,3.21110182]
[1762404505999,10.08719663,162.8,162.78,3.21110182]
[1762404506510,10.08719663,162.8,162.75,14.04439179]
[1762404506702,10.08719663,162.8,162.75,17.25577508]
[1762404506903,0.68,162.79,162.75,17.25577508]
[1762404507721,3.26461376,162.8,162.76,6.82400704]
[1762404507916,0.68,162.8,162.76,0.68]
[1762404508137,3.94461376,162.8,162.76,0.68]
[1762404508802,0.68,162.79,162.75,16.57573416]
[1762404509206,3.94461376,162.8,162.75,17.25573416]
[1762404509924,0.68,162.79,162.75,17.25573416]
[1762404510530,3.94461376,162.79,162.75,10.43138329]
[1762404510734,3.94461376,162.79,162.68,30.73404006]
[1762404510735,3.26461376,162.77,162.71,10.09015323]
[1762404511036,3.26461376,162.77,162.73,3.21186881]
[1762404511436,3.94461376,162.77,162.73,3.21186881]
[1762404511733,75.74611993,162.78,162.74,0.68]
[1762404511933,0.68,162.77,162.73,10.03685203]
[1762404513332,72.48150617,162.78,162.74,0.68]
[1762404513634,76.42611993,162.78,162.74,0.68]
[1762404514019,76.42611993,162.78,162.74,6.8246675]
[1762404514527,73.16150617,162.78,162.73,17.23694055]
[1762404514837,76.42611993,162.78,162.74,0.68]
[1762404515037,0.68,162.77,162.73,17.23694055]
[1762404515545,75.74611993,162.78,162.73,20.50155431]
[1762404515708,76.42611993,162.78,162.74,0.68]
[1762404516135,76.42611993,162.78,162.74,6.82467463]
[1762404517021,75.74611993,162.78,162.74,6.14467463]
[1762404517213,76.45611993,162.78,162.74,6.83467463]
[1762404517532,72.48150617,162.78,162.75,0.69]
[1762404518627,72.48150617,162.78,162.76,6.14401572]
[1762404518820,6.14221696,162.81,162.76,6.14401572]
[1762404518821,9.4067454,162.81,162.76,6.14401572]
[1762404519022,10.1167454,162.81,162.76,6.83401572]
[1762404519726,3.97461376,162.8,162.75,7.2]
[1762404520032,3.97461376,162.8,162.75,13.34431983]
[1762404520033,0.71,162.79,162.75,13.34431983]
[1762404520229,3.97461376,162.79,162.75,13.34431983]
[1762404520536,3.97461376,162.79,162.75,14.03431983]
[1762404521805,0.71,162.79,162.75,17.29893359]
[1762404522009,79.68150617,162.82,162.76,3.95461376]
[1762404522010,89.7979771,162.82,162.76,3.95461376]
[1762404522236,83.65611993,162.82,162.77,3.26461376]
[1762404522436,89.79789582,162.82,162.78,0.69]
[1762404524044,79.68150617,162.82,162.78,10.09770075]
[1762404524336,72.48150617,162.82,162.78,10.09770075]
[1762404525331,73.19150617,162.82,162.78,10.09770075]
[1762404525528,73.19150617,162.82,162.78,6.83308699]
[1762404525529,76.45611993,162.82,162.78,6.83308699]
[1762404526733,3.26461376,162.79,162.72,0.69]
[1762404526934,3.26461376,162.78,162.73,16.26531026]
[1762404527237,3.26461376,162.78,162.73,13.6906965]
[1762404527536,0.71,162.78,162.74,0.69]
[1762404528521,3.97461376,162.78,162.74,6.83445673]
[1762404528724,0.71,162.78,162.74,6.83445673]
[1762404529118,3.26461376,162.77,162.74,6.83445673]
[1762404530341,2.80082242,162.78,162.74,6.83445673]
[1762404530943,2.09082242,162.76,162.73,10.41186881]
[1762404531123,2.09082242,162.76,162.73,16.55701458]
[1762404531320,2.80082242,162.76,162.73,16.55701458]
[1762404532639,2.80082242,162.76,162.73,9.35701458]
[1762404532937,6.14367501,162.77,162.73,9.35701458]
[1762404532938,2.09082242,162.77,162.73,10.02701458]
[1762404534043,2.79082242,162.77,162.73,10.02701458]
[1762404534845,2.09082242,162.79,162.74,0.67]
[1762404535049,0.7,162.8,162.74,0.67]
[1762404535050,7.18,162.8,162.74,12.54965011]
[1762404535341,2.09082242,162.8,162.75,7.18]
[1762404535516,2.09082242,162.79,162.75,7.85]
[1762404535719,2.79082242,162.79,162.75,7.85]
[1762404536342,2.09082242,162.79,162.76,0.67]
[1762404536547,2.09082242,162.8,162.76,0.67]
[1762404536733,2.79082242,162.8,162.76,0.67]
[1762404537641,74.57232859,162.81,162.76,6.81387288]
[1762404537847,75.27232859,162.81,162.76,13.99387288]
[1762404538047,75.27232859,162.81,162.77,0.67]
[1762404538545,26.73341829,162.83,162.77,0.67]
[1762404538546,21.292,162.83,162.77,0.67]
[1762404538845,2.79082242,162.82,162.77,0.67]
[1762404539552,0.7,162.81,162.77,6.81361797]
[1762404541532,23.38282242,162.8,162.76,7.85]
[1762404542154,2.79082242,162.79,162.75,15.9331183]
[1762404542750,2.79082242,162.79,162.75,16.6031183]
[1762404543245,8.93374657,162.79,162.75,0.67]
[1762404543653,2.79082242,162.78,162.74,3.21124918]
[1762404543828,2.09082242,162.75,162.71,7.18]
[1762404544029,2.79082242,162.75,162.72,3.21215236]
[1762404544642,0.7,162.75,162.72,3.21215236]
[1762404544844,7.18,162.78,162.73,2.76082242]
[1762404545132,8.93374657,162.79,162.74,6.1447708]
[1762404545325,8.93374657,162.79,162.74,6.8147708]
[1762404546246,2.09082242,162.77,162.73,7.18]
[1762404546453,2.09082242,162.76,162.72,3.21215236]
[1762404546653,2.09082242,162.75,162.72,3.21215236]
[1762404546829,2.79082242,162.75,162.72,3.21215236]
[1762404547845,8.93540445,162.75,162.72,3.21215236]
[1762404548045,0.7,162.74,162.72,3.21215236]
[1762404548848,8.2349145,162.76,162.72,3.88215236]
[1762404549051,8.9349145,162.76,162.72,3.88215236]
[1762404549357,6.14409208,162.76,162.72,3.21215236]
[1762404549660,0.7,162.75,162.72,3.21215236]
[1762404551262,20.592,162.77,162.73,2.76082242]
[1762404551435,20.592,162.77,162.74,6.8147708]
[1762404552141,20.592,162.77,162.74,0.67]
[1762404552343,2.79082242,162.76,162.72,3.21215236]
[1762404552648,2.79082242,162.76,162.72,10.39215236]
[1762404552856,0.7,162.75,162.72,10.39215236]
[1762404554454,8.23511252,162.76,162.72,11.06215236]
[1762404554657,8.93511252,162.76,162.72,11.06215236]
[1762404555459,0.7,162.75,162.72,10.39215236]
[1762404558059,0.7,162.75,162.72,3.21215236]
[1762404558580,6.84442763,162.75,162.72,3.21215236]
[1762404558784,72.48150617,162.76,162.66,0.67]
[1762404558785,28.82797082,162.73,162.66,0.67]
[1762404558959,28.82797082,162.73,162.65,7.38]
[1762404558960,2.09082242,162.69,162.65,7.38]
[1762404559274,2.09082242,162.69,162.66,3.2131513]
[1762404559445,2.79082242,162.69,162.66,3.2131513]
[1762404559647,0.7,162.68,162.66,3.2131513]
[1762404559849,2.79082242,162.69,162.66,3.2131513]
[1762404560058,2.09082242,162.7,162.66,3.8831513]
[1762404560258,2.79082242,162.7,162.66,3.2131513]
[1762404560456,20.592,162.71,162.67,0.67]
[1762404560745,2.79082242,162.7,162.66,3.8831513]
[1762404561057,0.7,162.7,162.66,10.03090155]
[1762404561260,2.79082242,162.7,162.66,10.03090155]
[1762404561566,28.472,162.73,162.67,0.67]
[1762404561751,20.592,162.71,162.67,0.67]
[1762404562750,21.292,162.71,162.68,6.14703712]
[1762404562951,9.27082242,162.73,162.68,6.14703712]
[1762404563178,7.88,162.73,162.69,0.69]
[1762404563379,0.7,162.73,162.69,0.69]
[1762404563971,0.7,162.73,162.69,2.78082242]
[1762404564356,7.18,162.75,162.7,2.78082242]
[1762404564774,9.27082242,162.75,162.7,0.69]
[1762404564952,0.7,162.74,162.7,6.83612252]
[1762404565355,20.592,162.73,162.7,0.69]
[1762404565854,0.7,162.74,162.7,0.69]
[1762404566064,9.27082242,162.75,162.7,0.69]
[1762404566261,9.97082242,162.75,162.7,0.69]
[1762404566865,9.97082242,162.75,162.71,6.14590375]
[1762404567554,7.18,162.75,162.71,6.14590375]
[1762404567760,7.18,162.75,162.72,0.69]
[1762404568160,95.16432859,162.76,162.71,6.14590375]
[1762404568379,0.7,162.75,162.71,6.83590375]
[1762404569285,2.79082242,162.75,162.71,6.83590375]
[1762404569781,22.68282242,162.73,162.69,6.14640414]
[1762404570086,2.09082242,162.73,162.69,6.14640414]
[1762404570263,9.97082242,162.74,162.69,6.83640414]
[1762404570464,7.18,162.74,162.7,0.69]
[1762404571184,7.88,162.74,162.7,0.69]
[1762404571361,7.88,162.74,162.7,6.83590803]
[1762404571769,7.18,162.74,162.7,6.83590803]
[1762404571985,7.18,162.74,162.71,0.69]
[1762404572359,7.18,162.74,162.71,6.83586087]
[1762404572568,22.68282242,162.75,162.71,6.83586087]
[1762404572766,23.38282242,162.75,162.71,6.83586087]
[1762404575086,2.09082242,162.73,162.69,6.14663686]
[1762404575571,2.09082242,162.71,162.67,7.18]
[1762404575780,2.79082242,162.71,162.67,13.32730367]
[1762404575960,2.79082242,162.71,162.67,13.98730367]
[1762404577167,2.09082242,162.7,162.67,7.18]
[1762404577367,0.69,162.7,162.66,9.36092863]
[1762404577584,0.69,162.7,162.66,10.02092863]
[1762404578965,0.69,162.7,162.66,9.36092863]
[1762404579166,2.09082242,162.71,162.67,6.80733187]
[1762404579395,7.18,162.73,162.67,6.80733187]
[1762404579692,0.69,162.72,162.67,6.14733187]
[1762404579862,0.69,162.72,162.67,6.80733187]
[1762404580571,2.78082242,162.72,162.67,6.80733187]
[1762404580769,20.592,162.75,162.69,2.09082242]
[1762404580974,9.27082242,162.77,162.7,2.09082242]
[1762404581279,9.27082242,162.77,162.68,17.62882769]
[1762404581280,100.94350617,162.77,162.72,6.14552605]
[1762404581488,79.66150617,162.77,162.73,2.09082242]
[1762404581690,79.66150617,162.77,162.73,2.75082242]
[1762404581889,30.55282242,162.79,162.74,0.66]
[1762404582094,7.87,162.79,162.74,0.66]
[1762404582396,6.14026248,162.86,162.76,2.09082242]
[1762404582578,0.69,162.83,162.77,2.75082242]
[1762404582778,0.69,162.83,162.78,2.09082242]
[1762404583091,0.69,162.83,162.79,6.14288346]
[1762404583393,2.78082242,162.83,162.78,0.66]
[1762404583588,2.09082242,162.82,162.78,0.66]
[1762404583892,2.78082242,162.82,162.78,0.66]
[1762404586575,0.69,162.81,162.76,13.98394329]
[1762404586773,2.09082242,162.8,162.76,7.84]
[1762404587173,2.78082242,162.8,162.76,7.84]
[1762404587591,0.69,162.79,162.76,7.18]
[1762404587794,0.69,162.79,162.76,13.32398617]
[1762404587994,0.69,162.79,162.76,7.18]
[1762404588219,0.69,162.79,162.74,6.8047434]
[1762404588383,0.69,162.79,162.74,8.89556582]
[1762404588581,0.69,162.79,162.74,6.8047434]
[1762404588889,9.96082242,162.81,162.75,2.75082242]
[1762404589070,0.69,162.8,162.75,2.75082242]
[1762404589600,7.18,162.81,162.76,8.89469984]
[1762404589782,7.87,162.81,162.76,8.89469984]
[1762404589990,0.69,162.8,162.73,6.14512088]
[1762404590182,20.592,162.78,162.73,2.09082242]
[1762404590497,0.69,162.77,162.72,3.92669975]
[1762404591097,20.592,162.78,162.73,3.92669975]
[1762404591299,20.592,162.78,162.72,3.26669975]
[1762404591300,0.69,162.77,162.72,3.26669975]
[1762404591602,20.592,162.76,162.72,3.26669975]
[1762404591784,20.592,162.76,162.72,10.07213587]
[1762404592002,20.592,162.76,162.73,3.26669975]
[1762404592796,21.302,162.76,162.73,3.26669975]
[1762404594211,21.302,162.76,162.72,3.93669975]
[1762404594827,21.302,162.76,162.72,0.67]
[1762404594996,21.302,162.76,162.72,10.08213357]
[1762404597019,21.302,162.76,162.7,7.18]
[1762404597020,20.592,162.74,162.71,0.67]
[1762404597190,20.592,162.74,162.71,3.93669975]
[1762404598239,20.592,162.74,162.71,3.26669975]
[1762404598523,20.592,162.74,162.72,0.67]
[1762404598696,20.592,162.74,162.71,3.26669975]
[1762404599009,20.592,162.74,162.71,3.93669975]
[1762404600308,21.302,162.74,162.7,3.26669975]
[1762404600612,21.302,162.74,162.7,3.93669975]
[1762404600836,20.592,162.74,162.71,0.67]
[1762404601135,20.592,162.74,162.71,3.93669975]
[1762404601807,20.592,162.74,162.71,0.67]
[1762404602500,80.37150617,162.75,162.71,0.67]
[1762404603122,0.71,162.74,162.69,3.21170207]
[1762404603420,72.48150617,162.73,162.68,3.93669975]
[1762404603605,72.48150617,162.73,162.69,6.47952246]
[1762404604118,0.71,162.72,162.69,3.21282271]
[1762404604637,0.71,162.72,162.67,3.26669975]
[1762404604797,7.89,162.72,162.67,6.47988061]
[1762404604997,7.89,162.72,162.67,7.14988061]
[1762404605303,0.71,162.71,162.67,3.88318086]
[1762404605625,0.71,162.71,162.67,7.14988061]
[1762404605798,7.18,162.72,162.67,7.14988061]
[1762404605799,7.18,162.72,162.68,3.93669975]
[1762404606505,0.71,162.72,162.68,3.93669975]
[1762404607619,79.66150617,162.73,162.69,0.67]